Workbook

Sheet Körjournal
B1: KÖRJOURNAL
C11: ERSÄTTNINGSBARA | E11: SUMMA
C12: MIL | E12: ERSÄTTNING
C17: 2012-05-01 | E17: 2012-05-10
C19: PERIOD | E19: PERIOD
C20: START | E20: SLUT
C26: 54 | E26: 9,800
C28: ERSÄTTNING | E28: FÖREGÅENDE BRÄNSLE
C29: kr per mil | E29: MÄTARSTÄLLNING

Sheet Journaldata
B1: KÖRJOURNAL
B5: DATUM | C5: AKTIVITET | D5: MÄTARE 1 | E5: PLATS | F5: MÄTARE 2 | G5: DESTINATION | H5: ERSÄTT | I5: LITER | J5: KOSTNAD | K5: MIL | L5: Bränsleförbrukning | M5: kr per mil | N5: ANTECKNINGAR
B6: 2012-05-01 | C6: Resa | D6: 10,123 | E6: Esso – Storgatan | F6: 10,130 | I6: 15.56 | J6: 64.11 kr | K6: =Mil -> 7 | L6: =IF(OR(LEN(Information[[#This Row],[MÄTARE 2]]),Information[[#This Row],[MÄTARE 1]]=""),"",IFERROR(Information[[#This Row],[MIL]]/Information[[#This Row],[LITER]],"")) ->  | M6: =IF(Information[[#This Row],[Bränsleförbrukning]]="","",100*Information[[#This Row],[KOSTNAD]]/Information[[#This Row],[MIL]]) -> 
B7: 2012-05-01 | C7: Resa | D7: 10,130 | E7: Kontor | F7: 10,200 | G7: Lingonstigen | H7: Ja | K7: =Mil -> 70 | L7: =IF(OR(LEN(Information[[#This Row],[MÄTARE 2]]),Information[[#This Row],[MÄTARE 1]]=""),"",IFERROR(Information[[#This Row],[MIL]]/Information[[#This Row],[LITER]],"")) ->  | M7: =IF(Information[[#This Row],[Bränsleförbrukning]]="","",100*Information[[#This Row],[KOSTNAD]]/Information[[#This Row],[MIL]]) -> 
B8: 2012-05-01 | C8: Resa | D8: 10,200 | E8: Småstad | F8: 10,285 | G8: Kontor | H8: Ja | K8: =Mil -> 85 | L8: =IF(OR(LEN(Information[[#This Row],[MÄTARE 2]]),Information[[#This Row],[MÄTARE 1]]=""),"",IFERROR(Information[[#This Row],[MIL]]/Information[[#This Row],[LITER]],"")) ->  | M8: =IF(Information[[#This Row],[Bränsleförbrukning]]="","",100*Information[[#This Row],[KOSTNAD]]/Information[[#This Row],[MIL]]) -> 
B9: 2012-05-02 | C9: Resa | D9: 10,285 | E9: Kontor | F9: 10,450 | G9: Vingården | H9: Ja | K9: =Mil -> 165 | L9: =IF(OR(LEN(Information[[#This Row],[MÄTARE 2]]),Information[[#This Row],[MÄTARE 1]]=""),"",IFERROR(Information[[#This Row],[MIL]]/Information[[#This Row],[LITER]],"")) ->  | M9: =IF(Information[[#This Row],[Bränsleförbrukning]]="","",100*Information[[#This Row],[KOSTNAD]]/Information[[#This Row],[MIL]]) -> 
B10: 2012-05-02 | C10: Bränsle | D10: 10,450 | E10: Gulf | I10: 11.20 | J10: 55.42 kr | K10: =Mil -> 650 | L10: =IF(OR(LEN(Information[[#This Row],[MÄTARE 2]]),Information[[#This Row],[MÄTARE 1]]=""),"",IFERROR(Information[[#This Row],[MIL]]/Information[[#This Row],[LITER]],"")) -> 58.0 | M10: =IF(Information[[#This Row],[Bränsleförbrukning]]="","",100*Information[[#This Row],[KOSTNAD]]/Information[[#This Row],[MIL]]) -> 8.5
B11: 2012-05-02 | C11: Resa | D11: 10,500 | E11: Vingården | F11: 10,518 | G11: Kontor | H11: Ja | K11: =Mil -> 18 | L11: =IF(OR(LEN(Information[[#This Row],[MÄTARE 2]]),Information[[#This Row],[MÄTARE 1]]=""),"",IFERROR(Information[[#This Row],[MIL]]/Information[[#This Row],[LITER]],"")) ->  | M11: =IF(Information[[#This Row],[Bränsleförbrukning]]="","",100*Information[[#This Row],[KOSTNAD]]/Information[[#This Row],[MIL]]) -> 
B12: 2012-05-03 | C12: Resa | D12: 10,518 | E12: Kontor | F12: 10,745 | G12: Kontor | H12: Ja | K12: =Mil -> 227 | L12: =IF(OR(LEN(Information[[#This Row],[MÄTARE 2]]),Information[[#This Row],[MÄTARE 1]]=""),"",IFERROR(Information[[#This Row],[MIL]]/Information[[#This Row],[LITER]],"")) ->  | M12: =IF(Information[[#This Row],[Bränsleförbrukning]]="","",100*Information[[#This Row],[KOSTNAD]]/Information[[#This Row],[MIL]]) -> 
B13: 2012-05-04 | C13: Bränsle | D13: 10,745 | E13: Esso – Storgatan | I13: 16.60 | J13: 69.24 kr | K13: =Mil -> 295 | L13: =IF(OR(LEN(Information[[#This Row],[MÄTARE 2]]),Information[[#This Row],[MÄTARE 1]]=""),"",IFERROR(Information[[#This Row],[MIL]]/Information[[#This Row],[LITER]],"")) -> 17.8 | M13: =IF(Information[[#This Row],[Bränsleförbrukning]]="","",100*Information[[#This Row],[KOSTNAD]]/Information[[#This Row],[MIL]]) -> 23.5
B14: 2012-05-04 | C14: Resa | D14: 10,745 | E14: Kontor | F14: 10,800 | G14: Badorten | H14: Ja | K14: =Mil -> 55 | L14: =IF(OR(LEN(Information[[#This Row],[MÄTARE 2]]),Information[[#This Row],[MÄTARE 1]]=""),"",IFERROR(Information[[#This Row],[MIL]]/Information[[#This Row],[LITER]],"")) ->  | M14: =IF(Information[[#This Row],[Bränsleförbrukning]]="","",100*Information[[#This Row],[KOSTNAD]]/Information[[#This Row],[MIL]]) -> 
B15: 2012-05-04 | C15: Resa | D15: 10,800 | E15: Badorten | F15: 10,875 | G15: Kontor | H15: Ja | K15: =Mil -> 75 | L15: =IF(OR(LEN(Information[[#This Row],[MÄTARE 2]]),Information[[#This Row],[MÄTARE 1]]=""),"",IFERROR(Information[[#This Row],[MIL]]/Information[[#This Row],[LITER]],"")) ->  | M15: =IF(Information[[#This Row],[Bränsleförbrukning]]="","",100*Information[[#This Row],[KOSTNAD]]/Information[[#This Row],[MIL]]) -> 
B16: 2012-05-07 | C16: Resa | D16: 10,875 | E16: Kontor | F16: 10,921 | G16: Lingonstigen | H16: Ja | K16: =Mil -> 46 | L16: =IF(OR(LEN(Information[[#This Row],[MÄTARE 2]]),Information[[#This Row],[MÄTARE 1]]=""),"",IFERROR(Information[[#This Row],[MIL]]/Information[[#This Row],[LITER]],"")) ->  | M16: =IF(Information[[#This Row],[Bränsleförbrukning]]="","",100*Information[[#This Row],[KOSTNAD]]/Information[[#This Row],[MIL]]) -> 
B17: 2012-05-07 | C17: Resa | D17: 10,921 | E17: Småstad | F17: 10,969 | G17: Kontor | H17: Ja | K17: =Mil -> 48 | L17: =IF(OR(LEN(Information[[#This Row],[MÄTARE 2]]),Information[[#This Row],[MÄTARE 1]]=""),"",IFERROR(Information[[#This Row],[MIL]]/Information[[#This Row],[LITER]],"")) ->  | M17: =IF(Information[[#This Row],[Bränsleförbrukning]]="","",100*Information[[#This Row],[KOSTNAD]]/Information[[#This Row],[MIL]]) -> 
B18: 2012-05-09 | C18: Resa | D18: 10,969 | E18: Kontor | F18: 11,000 | G18: Fjällen | H18: Ja | K18: =Mil -> 31 | L18: =IF(OR(LEN(Information[[#This Row],[MÄTARE 2]]),Information[[#This Row],[MÄTARE 1]]=""),"",IFERROR(Information[[#This Row],[MIL]]/Information[[#This Row],[LITER]],"")) ->  | M18: =IF(Information[[#This Row],[Bränsleförbrukning]]="","",100*Information[[#This Row],[KOSTNAD]]/Information[[#This Row],[MIL]]) -> 
B19: 2012-05-09 | C19: Resa | D19: 11,000 | E19: Fjällen | F19: 11,100 | G19: Hemma | H19: Nej | K19: =Mil -> 100 | L19: =IF(OR(LEN(Information[[#This Row],[MÄTARE 2]]),Information[[#This Row],[MÄTARE 1]]=""),"",IFERROR(Information[[#This Row],[MIL]]/Information[[#This Row],[LITER]],"")) ->  | M19: =IF(Information[[#This Row],[Bränsleförbrukning]]="","",100*Information[[#This Row],[KOSTNAD]]/Information[[#This Row],[MIL]]) -> 

Sheet Beräkningar (hidden)
A1: *** Det här bladet ska vara dolt ***
I6: =OFFSET(I9,,Andra_axel="Bränsle_kostnad") -> kr per mil
M7: 2
H8: Resa | I8: Bränsle | J8: Bränsle | L8: Andra axeln: | M8: =REPT("MPG",M7=1)&REPT("Bränsle_kostnad",M7=2) -> Bränsle_kostnad
H9: Körda mil | I9: Bränsleförbrukning | J9: kr per mil
C10: Antal mil som berättigar till ersättning: | D10: =SUMIFS(Information[MIL],Information[ERSÄTT],"ja",Information[DATUM],">="&periodStart,Information[DATUM],"<="&Periodslut) -> 820 | F10: 1 | G10: =periodStart -> 2012-05-01 | H10: =SUMIFS(Information[MIL],Information[DATUM],G10,Information[AKTIVITET],$H$8) -> 162 | I10: =IFERROR(AVERAGEIFS(Information[Bränsleförbrukning],Information[DATUM],G10,Information[AKTIVITET],$I$8),NA()) ->  | J10: =IFERROR(AVERAGEIFS(Information[kr per mil],Information[DATUM],G10,Information[AKTIVITET],$J$8),NA()) -> 
C11: Summa ersättning: | D11: =D10*Ersättning_per_mil/100 -> 442.80 kr | F11: 2 | G11: =G10+1 -> 2012-05-02 | H11: =SUMIFS(Information[MIL],Information[DATUM],G11,Information[AKTIVITET],$H$8) -> 183 | I11: =IFERROR(AVERAGEIFS(Information[Bränsleförbrukning],Information[DATUM],G11,Information[AKTIVITET],$I$8),NA()) -> 58.0 | J11: =IFERROR(AVERAGEIFS(Information[kr per mil],Information[DATUM],G11,Information[AKTIVITET],$J$8),NA()) -> 8.5
F12: 3 | G12: 2012-05-03 | H12: =SUMIFS(Information[MIL],Information[DATUM],G12,Information[AKTIVITET],$H$8) -> 227 | I12: =IFERROR(AVERAGEIFS(Information[Bränsleförbrukning],Information[DATUM],G12,Information[AKTIVITET],$I$8),NA()) ->  | J12: =IFERROR(AVERAGEIFS(Information[kr per mil],Information[DATUM],G12,Information[AKTIVITET],$J$8),NA()) -> 
F13: 4 | G13: 2012-05-04 | H13: =SUMIFS(Information[MIL],Information[DATUM],G13,Information[AKTIVITET],$H$8) -> 130 | I13: =IFERROR(AVERAGEIFS(Information[Bränsleförbrukning],Information[DATUM],G13,Information[AKTIVITET],$I$8),NA()) -> 17.8 | J13: =IFERROR(AVERAGEIFS(Information[kr per mil],Information[DATUM],G13,Information[AKTIVITET],$J$8),NA()) -> 23.5
F14: 5 | G14: 2012-05-05 | H14: =SUMIFS(Information[MIL],Information[DATUM],G14,Information[AKTIVITET],$H$8) -> 0 | I14: =IFERROR(AVERAGEIFS(Information[Bränsleförbrukning],Information[DATUM],G14,Information[AKTIVITET],$I$8),NA()) ->  | J14: =IFERROR(AVERAGEIFS(Information[kr per mil],Information[DATUM],G14,Information[AKTIVITET],$J$8),NA()) -> 
F15: 6 | G15: 2012-05-06 | H15: =SUMIFS(Information[MIL],Information[DATUM],G15,Information[AKTIVITET],$H$8) -> 0 | I15: =IFERROR(AVERAGEIFS(Information[Bränsleförbrukning],Information[DATUM],G15,Information[AKTIVITET],$I$8),NA()) ->  | J15: =IFERROR(AVERAGEIFS(Information[kr per mil],Information[DATUM],G15,Information[AKTIVITET],$J$8),NA()) -> 
F16: 7 | G16: 2012-05-07 | H16: =SUMIFS(Information[MIL],Information[DATUM],G16,Information[AKTIVITET],$H$8) -> 94 | I16: =IFERROR(AVERAGEIFS(Information[Bränsleförbrukning],Information[DATUM],G16,Information[AKTIVITET],$I$8),NA()) ->  | J16: =IFERROR(AVERAGEIFS(Information[kr per mil],Information[DATUM],G16,Information[AKTIVITET],$J$8),NA()) -> 
F17: 8 | G17: 2012-05-08 | H17: =SUMIFS(Information[MIL],Information[DATUM],G17,Information[AKTIVITET],$H$8) -> 0 | I17: =IFERROR(AVERAGEIFS(Information[Bränsleförbrukning],Information[DATUM],G17,Information[AKTIVITET],$I$8),NA()) ->  | J17: =IFERROR(AVERAGEIFS(Information[kr per mil],Information[DATUM],G17,Information[AKTIVITET],$J$8),NA()) -> 
F18: 9 | G18: 2012-05-09 | H18: =SUMIFS(Information[MIL],Information[DATUM],G18,Information[AKTIVITET],$H$8) -> 131 | I18: =IFERROR(AVERAGEIFS(Information[Bränsleförbrukning],Information[DATUM],G18,Information[AKTIVITET],$I$8),NA()) ->  | J18: =IFERROR(AVERAGEIFS(Information[kr per mil],Information[DATUM],G18,Information[AKTIVITET],$J$8),NA()) -> 
F19: 10 | G19: 2012-05-10 | H19: =SUMIFS(Information[MIL],Information[DATUM],G19,Information[AKTIVITET],$H$8) -> 0 | I19: =IFERROR(AVERAGEIFS(Information[Bränsleförbrukning],Information[DATUM],G19,Information[AKTIVITET],$I$8),NA()) ->  | J19: =IFERROR(AVERAGEIFS(Information[kr per mil],Information[DATUM],G19,Information[AKTIVITET],$J$8),NA()) -> 
F20: 11 | G20: 2012-05-11 | H20: =SUMIFS(Information[MIL],Information[DATUM],G20,Information[AKTIVITET],$H$8) -> 0 | I20: =IFERROR(AVERAGEIFS(Information[Bränsleförbrukning],Information[DATUM],G20,Information[AKTIVITET],$I$8),NA()) ->  | J20: =IFERROR(AVERAGEIFS(Information[kr per mil],Information[DATUM],G20,Information[AKTIVITET],$J$8),NA()) -> 
F21: 12 | G21: 2012-05-12 | H21: =SUMIFS(Information[MIL],Information[DATUM],G21,Information[AKTIVITET],$H$8) -> 0 | I21: =IFERROR(AVERAGEIFS(Information[Bränsleförbrukning],Information[DATUM],G21,Information[AKTIVITET],$I$8),NA()) ->  | J21: =IFERROR(AVERAGEIFS(Information[kr per mil],Information[DATUM],G21,Information[AKTIVITET],$J$8),NA()) -> 
F22: 13 | G22: 2012-05-13 | H22: =SUMIFS(Information[MIL],Information[DATUM],G22,Information[AKTIVITET],$H$8) -> 0 | I22: =IFERROR(AVERAGEIFS(Information[Bränsleförbrukning],Information[DATUM],G22,Information[AKTIVITET],$I$8),NA()) ->  | J22: =IFERROR(AVERAGEIFS(Information[kr per mil],Information[DATUM],G22,Information[AKTIVITET],$J$8),NA()) -> 
F23: 14 | G23: 2012-05-14 | H23: =SUMIFS(Information[MIL],Information[DATUM],G23,Information[AKTIVITET],$H$8) -> 0 | I23: =IFERROR(AVERAGEIFS(Information[Bränsleförbrukning],Information[DATUM],G23,Information[AKTIVITET],$I$8),NA()) ->  | J23: =IFERROR(AVERAGEIFS(Information[kr per mil],Information[DATUM],G23,Information[AKTIVITET],$J$8),NA()) -> 
F24: 15 | G24: 2012-05-15 | H24: =SUMIFS(Information[MIL],Information[DATUM],G24,Information[AKTIVITET],$H$8) -> 0 | I24: =IFERROR(AVERAGEIFS(Information[Bränsleförbrukning],Information[DATUM],G24,Information[AKTIVITET],$I$8),NA()) ->  | J24: =IFERROR(AVERAGEIFS(Information[kr per mil],Information[DATUM],G24,Information[AKTIVITET],$J$8),NA()) -> 
F25: 16 | G25: 2012-05-16 | H25: =SUMIFS(Information[MIL],Information[DATUM],G25,Information[AKTIVITET],$H$8) -> 0 | I25: =IFERROR(AVERAGEIFS(Information[Bränsleförbrukning],Information[DATUM],G25,Information[AKTIVITET],$I$8),NA()) ->  | J25: =IFERROR(AVERAGEIFS(Information[kr per mil],Information[DATUM],G25,Information[AKTIVITET],$J$8),NA()) -> 
F26: 17 | G26: 2012-05-17 | H26: =SUMIFS(Information[MIL],Information[DATUM],G26,Information[AKTIVITET],$H$8) -> 0 | I26: =IFERROR(AVERAGEIFS(Information[Bränsleförbrukning],Information[DATUM],G26,Information[AKTIVITET],$I$8),NA()) ->  | J26: =IFERROR(AVERAGEIFS(Information[kr per mil],Information[DATUM],G26,Information[AKTIVITET],$J$8),NA()) -> 
F27: 18 | G27: 2012-05-18 | H27: =SUMIFS(Information[MIL],Information[DATUM],G27,Information[AKTIVITET],$H$8) -> 0 | I27: =IFERROR(AVERAGEIFS(Information[Bränsleförbrukning],Information[DATUM],G27,Information[AKTIVITET],$I$8),NA()) ->  | J27: =IFERROR(AVERAGEIFS(Information[kr per mil],Information[DATUM],G27,Information[AKTIVITET],$J$8),NA()) -> 
F28: 19 | G28: 2012-05-19 | H28: =SUMIFS(Information[MIL],Information[DATUM],G28,Information[AKTIVITET],$H$8) -> 0 | I28: =IFERROR(AVERAGEIFS(Information[Bränsleförbrukning],Information[DATUM],G28,Information[AKTIVITET],$I$8),NA()) ->  | J28: =IFERROR(AVERAGEIFS(Information[kr per mil],Information[DATUM],G28,Information[AKTIVITET],$J$8),NA()) -> 
F29: 20 | G29: 2012-05-20 | H29: =SUMIFS(Information[MIL],Information[DATUM],G29,Information[AKTIVITET],$H$8) -> 0 | I29: =IFERROR(AVERAGEIFS(Information[Bränsleförbrukning],Information[DATUM],G29,Information[AKTIVITET],$I$8),NA()) ->  | J29: =IFERROR(AVERAGEIFS(Information[kr per mil],Information[DATUM],G29,Information[AKTIVITET],$J$8),NA()) -> 
F30: 21 | G30: 2012-05-21 | H30: =SUMIFS(Information[MIL],Information[DATUM],G30,Information[AKTIVITET],$H$8) -> 0 | I30: =IFERROR(AVERAGEIFS(Information[Bränsleförbrukning],Information[DATUM],G30,Information[AKTIVITET],$I$8),NA()) ->  | J30: =IFERROR(AVERAGEIFS(Information[kr per mil],Information[DATUM],G30,Information[AKTIVITET],$J$8),NA()) -> 
F31: 22 | G31: 2012-05-22 | H31: =SUMIFS(Information[MIL],Information[DATUM],G31,Information[AKTIVITET],$H$8) -> 0 | I31: =IFERROR(AVERAGEIFS(Information[Bränsleförbrukning],Information[DATUM],G31,Information[AKTIVITET],$I$8),NA()) ->  | J31: =IFERROR(AVERAGEIFS(Information[kr per mil],Information[DATUM],G31,Information[AKTIVITET],$J$8),NA()) -> 
F32: 23 | G32: 2012-05-23 | H32: =SUMIFS(Information[MIL],Information[DATUM],G32,Information[AKTIVITET],$H$8) -> 0 | I32: =IFERROR(AVERAGEIFS(Information[Bränsleförbrukning],Information[DATUM],G32,Information[AKTIVITET],$I$8),NA()) ->  | J32: =IFERROR(AVERAGEIFS(Information[kr per mil],Information[DATUM],G32,Information[AKTIVITET],$J$8),NA()) -> 
F33: 24 | G33: 2012-05-24 | H33: =SUMIFS(Information[MIL],Information[DATUM],G33,Information[AKTIVITET],$H$8) -> 0 | I33: =IFERROR(AVERAGEIFS(Information[Bränsleförbrukning],Information[DATUM],G33,Information[AKTIVITET],$I$8),NA()) ->  | J33: =IFERROR(AVERAGEIFS(Information[kr per mil],Information[DATUM],G33,Information[AKTIVITET],$J$8),NA()) -> 
F34: 25 | G34: 2012-05-25 | H34: =SUMIFS(Information[MIL],Information[DATUM],G34,Information[AKTIVITET],$H$8) -> 0 | I34: =IFERROR(AVERAGEIFS(Information[Bränsleförbrukning],Information[DATUM],G34,Information[AKTIVITET],$I$8),NA()) ->  | J34: =IFERROR(AVERAGEIFS(Information[kr per mil],Information[DATUM],G34,Information[AKTIVITET],$J$8),NA()) -> 
F35: 26 | G35: 2012-05-26 | H35: =SUMIFS(Information[MIL],Information[DATUM],G35,Information[AKTIVITET],$H$8) -> 0 | I35: =IFERROR(AVERAGEIFS(Information[Bränsleförbrukning],Information[DATUM],G35,Information[AKTIVITET],$I$8),NA()) ->  | J35: =IFERROR(AVERAGEIFS(Information[kr per mil],Information[DATUM],G35,Information[AKTIVITET],$J$8),NA()) -> 
F36: 27 | G36: 2012-05-27 | H36: =SUMIFS(Information[MIL],Information[DATUM],G36,Information[AKTIVITET],$H$8) -> 0 | I36: =IFERROR(AVERAGEIFS(Information[Bränsleförbrukning],Information[DATUM],G36,Information[AKTIVITET],$I$8),NA()) ->  | J36: =IFERROR(AVERAGEIFS(Information[kr per mil],Information[DATUM],G36,Information[AKTIVITET],$J$8),NA()) -> 
F37: 28 | G37: 2012-05-28 | H37: =SUMIFS(Information[MIL],Information[DATUM],G37,Information[AKTIVITET],$H$8) -> 0 | I37: =IFERROR(AVERAGEIFS(Information[Bränsleförbrukning],Information[DATUM],G37,Information[AKTIVITET],$I$8),NA()) ->  | J37: =IFERROR(AVERAGEIFS(Information[kr per mil],Information[DATUM],G37,Information[AKTIVITET],$J$8),NA()) -> 
F38: 29 | G38: 2012-05-29 | H38: =SUMIFS(Information[MIL],Information[DATUM],G38,Information[AKTIVITET],$H$8) -> 0 | I38: =IFERROR(AVERAGEIFS(Information[Bränsleförbrukning],Information[DATUM],G38,Information[AKTIVITET],$I$8),NA()) ->  | J38: =IFERROR(AVERAGEIFS(Information[kr per mil],Information[DATUM],G38,Information[AKTIVITET],$J$8),NA()) -> 
F39: 30 | G39: 2012-05-30 | H39: =SUMIFS(Information[MIL],Information[DATUM],G39,Information[AKTIVITET],$H$8) -> 0 | I39: =IFERROR(AVERAGEIFS(Information[Bränsleförbrukning],Information[DATUM],G39,Information[AKTIVITET],$I$8),NA()) ->  | J39: =IFERROR(AVERAGEIFS(Information[kr per mil],Information[DATUM],G39,Information[AKTIVITET],$J$8),NA()) -> 
F40: 31 | G40: 2012-05-31 | H40: =SUMIFS(Information[MIL],Information[DATUM],G40,Information[AKTIVITET],$H$8) -> 0 | I40: =IFERROR(AVERAGEIFS(Information[Bränsleförbrukning],Information[DATUM],G40,Information[AKTIVITET],$I$8),NA()) ->  | J40: =IFERROR(AVERAGEIFS(Information[kr per mil],Information[DATUM],G40,Information[AKTIVITET],$J$8),NA()) -> 
F41: 32 | G41: 2012-06-01 | H41: =SUMIFS(Information[MIL],Information[DATUM],G41,Information[AKTIVITET],$H$8) -> 0 | I41: =IFERROR(AVERAGEIFS(Information[Bränsleförbrukning],Information[DATUM],G41,Information[AKTIVITET],$I$8),NA()) ->  | J41: =IFERROR(AVERAGEIFS(Information[kr per mil],Information[DATUM],G41,Information[AKTIVITET],$J$8),NA()) -> 
F42: 33 | G42: 2012-06-02 | H42: =SUMIFS(Information[MIL],Information[DATUM],G42,Information[AKTIVITET],$H$8) -> 0 | I42: =IFERROR(AVERAGEIFS(Information[Bränsleförbrukning],Information[DATUM],G42,Information[AKTIVITET],$I$8),NA()) ->  | J42: =IFERROR(AVERAGEIFS(Information[kr per mil],Information[DATUM],G42,Information[AKTIVITET],$J$8),NA()) -> 
F43: 34 | G43: =G42+1 -> 2012-06-03 | H43: =SUMIFS(Information[MIL],Information[DATUM],G43,Information[AKTIVITET],$H$8) -> 0 | I43: =IFERROR(AVERAGEIFS(Information[Bränsleförbrukning],Information[DATUM],G43,Information[AKTIVITET],$I$8),NA()) ->  | J43: =IFERROR(AVERAGEIFS(Information[kr per mil],Information[DATUM],G43,Information[AKTIVITET],$J$8),NA()) -> 
F44: 35 | G44: 2012-06-04 | H44: =SUMIFS(Information[MIL],Information[DATUM],G44,Information[AKTIVITET],$H$8) -> 0 | I44: =IFERROR(AVERAGEIFS(Information[Bränsleförbrukning],Information[DATUM],G44,Information[AKTIVITET],$I$8),NA()) ->  | J44: =IFERROR(AVERAGEIFS(Information[kr per mil],Information[DATUM],G44,Information[AKTIVITET],$J$8),NA()) -> 
F45: 36 | G45: 2012-06-05 | H45: =SUMIFS(Information[MIL],Information[DATUM],G45,Information[AKTIVITET],$H$8) -> 0 | I45: =IFERROR(AVERAGEIFS(Information[Bränsleförbrukning],Information[DATUM],G45,Information[AKTIVITET],$I$8),NA()) ->  | J45: =IFERROR(AVERAGEIFS(Information[kr per mil],Information[DATUM],G45,Information[AKTIVITET],$J$8),NA()) -> 
F46: 37 | G46: 2012-06-06 | H46: =SUMIFS(Information[MIL],Information[DATUM],G46,Information[AKTIVITET],$H$8) -> 0 | I46: =IFERROR(AVERAGEIFS(Information[Bränsleförbrukning],Information[DATUM],G46,Information[AKTIVITET],$I$8),NA()) ->  | J46: =IFERROR(AVERAGEIFS(Information[kr per mil],Information[DATUM],G46,Information[AKTIVITET],$J$8),NA()) -> 
F47: 38 | G47: 2012-06-07 | H47: =SUMIFS(Information[MIL],Information[DATUM],G47,Information[AKTIVITET],$H$8) -> 0 | I47: =IFERROR(AVERAGEIFS(Information[Bränsleförbrukning],Information[DATUM],G47,Information[AKTIVITET],$I$8),NA()) ->  | J47: =IFERROR(AVERAGEIFS(Information[kr per mil],Information[DATUM],G47,Information[AKTIVITET],$J$8),NA()) -> 
F48: 39 | G48: 2012-06-08 | H48: =SUMIFS(Information[MIL],Information[DATUM],G48,Information[AKTIVITET],$H$8) -> 0 | I48: =IFERROR(AVERAGEIFS(Information[Bränsleförbrukning],Information[DATUM],G48,Information[AKTIVITET],$I$8),NA()) ->  | J48: =IFERROR(AVERAGEIFS(Information[kr per mil],Information[DATUM],G48,Information[AKTIVITET],$J$8),NA()) -> 
F49: 40 | G49: 2012-06-09 | H49: =SUMIFS(Information[MIL],Information[DATUM],G49,Information[AKTIVITET],$H$8) -> 0 | I49: =IFERROR(AVERAGEIFS(Information[Bränsleförbrukning],Information[DATUM],G49,Information[AKTIVITET],$I$8),NA()) ->  | J49: =IFERROR(AVERAGEIFS(Information[kr per mil],Information[DATUM],G49,Information[AKTIVITET],$J$8),NA()) -> 
F50: 41 | G50: 2012-06-10 | H50: =SUMIFS(Information[MIL],Information[DATUM],G50,Information[AKTIVITET],$H$8) -> 0 | I50: =IFERROR(AVERAGEIFS(Information[Bränsleförbrukning],Information[DATUM],G50,Information[AKTIVITET],$I$8),NA()) ->  | J50: =IFERROR(AVERAGEIFS(Information[kr per mil],Information[DATUM],G50,Information[AKTIVITET],$J$8),NA()) -> 
F51: 42 | G51: 2012-06-11 | H51: =SUMIFS(Information[MIL],Information[DATUM],G51,Information[AKTIVITET],$H$8) -> 0 | I51: =IFERROR(AVERAGEIFS(Information[Bränsleförbrukning],Information[DATUM],G51,Information[AKTIVITET],$I$8),NA()) ->  | J51: =IFERROR(AVERAGEIFS(Information[kr per mil],Information[DATUM],G51,Information[AKTIVITET],$J$8),NA()) -> 
F52: 43 | G52: 2012-06-12 | H52: =SUMIFS(Information[MIL],Information[DATUM],G52,Information[AKTIVITET],$H$8) -> 0 | I52: =IFERROR(AVERAGEIFS(Information[Bränsleförbrukning],Information[DATUM],G52,Information[AKTIVITET],$I$8),NA()) ->  | J52: =IFERROR(AVERAGEIFS(Information[kr per mil],Information[DATUM],G52,Information[AKTIVITET],$J$8),NA()) -> 
F53: 44 | G53: 2012-06-13 | H53: =SUMIFS(Information[MIL],Information[DATUM],G53,Information[AKTIVITET],$H$8) -> 0 | I53: =IFERROR(AVERAGEIFS(Information[Bränsleförbrukning],Information[DATUM],G53,Information[AKTIVITET],$I$8),NA()) ->  | J53: =IFERROR(AVERAGEIFS(Information[kr per mil],Information[DATUM],G53,Information[AKTIVITET],$J$8),NA()) -> 
F54: 45 | G54: 2012-06-14 | H54: =SUMIFS(Information[MIL],Information[DATUM],G54,Information[AKTIVITET],$H$8) -> 0 | I54: =IFERROR(AVERAGEIFS(Information[Bränsleförbrukning],Information[DATUM],G54,Information[AKTIVITET],$I$8),NA()) ->  | J54: =IFERROR(AVERAGEIFS(Information[kr per mil],Information[DATUM],G54,Information[AKTIVITET],$J$8),NA()) -> 
F55: 46 | G55: 2012-06-15 | H55: =SUMIFS(Information[MIL],Information[DATUM],G55,Information[AKTIVITET],$H$8) -> 0 | I55: =IFERROR(AVERAGEIFS(Information[Bränsleförbrukning],Information[DATUM],G55,Information[AKTIVITET],$I$8),NA()) ->  | J55: =IFERROR(AVERAGEIFS(Information[kr per mil],Information[DATUM],G55,Information[AKTIVITET],$J$8),NA()) -> 
F56: 47 | G56: 2012-06-16 | H56: =SUMIFS(Information[MIL],Information[DATUM],G56,Information[AKTIVITET],$H$8) -> 0 | I56: =IFERROR(AVERAGEIFS(Information[Bränsleförbrukning],Information[DATUM],G56,Information[AKTIVITET],$I$8),NA()) ->  | J56: =IFERROR(AVERAGEIFS(Information[kr per mil],Information[DATUM],G56,Information[AKTIVITET],$J$8),NA()) -> 
F57: 48 | G57: 2012-06-17 | H57: =SUMIFS(Information[MIL],Information[DATUM],G57,Information[AKTIVITET],$H$8) -> 0 | I57: =IFERROR(AVERAGEIFS(Information[Bränsleförbrukning],Information[DATUM],G57,Information[AKTIVITET],$I$8),NA()) ->  | J57: =IFERROR(AVERAGEIFS(Information[kr per mil],Information[DATUM],G57,Information[AKTIVITET],$J$8),NA()) -> 
F58: 49 | G58: 2012-06-18 | H58: =SUMIFS(Information[MIL],Information[DATUM],G58,Information[AKTIVITET],$H$8) -> 0 | I58: =IFERROR(AVERAGEIFS(Information[Bränsleförbrukning],Information[DATUM],G58,Information[AKTIVITET],$I$8),NA()) ->  | J58: =IFERROR(AVERAGEIFS(Information[kr per mil],Information[DATUM],G58,Information[AKTIVITET],$J$8),NA()) -> 
F59: 50 | G59: 2012-06-19 | H59: =SUMIFS(Information[MIL],Information[DATUM],G59,Information[AKTIVITET],$H$8) -> 0 | I59: =IFERROR(AVERAGEIFS(Information[Bränsleförbrukning],Information[DATUM],G59,Information[AKTIVITET],$I$8),NA()) ->  | J59: =IFERROR(AVERAGEIFS(Information[kr per mil],Information[DATUM],G59,Information[AKTIVITET],$J$8),NA()) -> 
F60: 51 | G60: 2012-06-20 | H60: =SUMIFS(Information[MIL],Information[DATUM],G60,Information[AKTIVITET],$H$8) -> 0 | I60: =IFERROR(AVERAGEIFS(Information[Bränsleförbrukning],Information[DATUM],G60,Information[AKTIVITET],$I$8),NA()) ->  | J60: =IFERROR(AVERAGEIFS(Information[kr per mil],Information[DATUM],G60,Information[AKTIVITET],$J$8),NA()) -> 
F61: 52 | G61: 2012-06-21 | H61: =SUMIFS(Information[MIL],Information[DATUM],G61,Information[AKTIVITET],$H$8) -> 0 | I61: =IFERROR(AVERAGEIFS(Information[Bränsleförbrukning],Information[DATUM],G61,Information[AKTIVITET],$I$8),NA()) ->  | J61: =IFERROR(AVERAGEIFS(Information[kr per mil],Information[DATUM],G61,Information[AKTIVITET],$J$8),NA()) -> 
F62: 53 | G62: 2012-06-22 | H62: =SUMIFS(Information[MIL],Information[DATUM],G62,Information[AKTIVITET],$H$8) -> 0 | I62: =IFERROR(AVERAGEIFS(Information[Bränsleförbrukning],Information[DATUM],G62,Information[AKTIVITET],$I$8),NA()) ->  | J62: =IFERROR(AVERAGEIFS(Information[kr per mil],Information[DATUM],G62,Information[AKTIVITET],$J$8),NA()) -> 
F63: 54 | G63: 2012-06-23 | H63: =SUMIFS(Information[MIL],Information[DATUM],G63,Information[AKTIVITET],$H$8) -> 0 | I63: =IFERROR(AVERAGEIFS(Information[Bränsleförbrukning],Information[DATUM],G63,Information[AKTIVITET],$I$8),NA()) ->  | J63: =IFERROR(AVERAGEIFS(Information[kr per mil],Information[DATUM],G63,Information[AKTIVITET],$J$8),NA()) -> 
F64: 55 | G64: 2012-06-24 | H64: =SUMIFS(Information[MIL],Information[DATUM],G64,Information[AKTIVITET],$H$8) -> 0 | I64: =IFERROR(AVERAGEIFS(Information[Bränsleförbrukning],Information[DATUM],G64,Information[AKTIVITET],$I$8),NA()) ->  | J64: =IFERROR(AVERAGEIFS(Information[kr per mil],Information[DATUM],G64,Information[AKTIVITET],$J$8),NA()) -> 
F65: 56 | G65: 2012-06-25 | H65: =SUMIFS(Information[MIL],Information[DATUM],G65,Information[AKTIVITET],$H$8) -> 0 | I65: =IFERROR(AVERAGEIFS(Information[Bränsleförbrukning],Information[DATUM],G65,Information[AKTIVITET],$I$8),NA()) ->  | J65: =IFERROR(AVERAGEIFS(Information[kr per mil],Information[DATUM],G65,Information[AKTIVITET],$J$8),NA()) -> 
F66: 57 | G66: 2012-06-26 | H66: =SUMIFS(Information[MIL],Information[DATUM],G66,Information[AKTIVITET],$H$8) -> 0 | I66: =IFERROR(AVERAGEIFS(Information[Bränsleförbrukning],Information[DATUM],G66,Information[AKTIVITET],$I$8),NA()) ->  | J66: =IFERROR(AVERAGEIFS(Information[kr per mil],Information[DATUM],G66,Information[AKTIVITET],$J$8),NA()) -> 
F67: 58 | G67: 2012-06-27 | H67: =SUMIFS(Information[MIL],Information[DATUM],G67,Information[AKTIVITET],$H$8) -> 0 | I67: =IFERROR(AVERAGEIFS(Information[Bränsleförbrukning],Information[DATUM],G67,Information[AKTIVITET],$I$8),NA()) ->  | J67: =IFERROR(AVERAGEIFS(Information[kr per mil],Information[DATUM],G67,Information[AKTIVITET],$J$8),NA()) -> 
F68: 59 | G68: 2012-06-28 | H68: =SUMIFS(Information[MIL],Information[DATUM],G68,Information[AKTIVITET],$H$8) -> 0 | I68: =IFERROR(AVERAGEIFS(Information[Bränsleförbrukning],Information[DATUM],G68,Information[AKTIVITET],$I$8),NA()) ->  | J68: =IFERROR(AVERAGEIFS(Information[kr per mil],Information[DATUM],G68,Information[AKTIVITET],$J$8),NA()) -> 
F69: 60 | G69: 2012-06-29 | H69: =SUMIFS(Information[MIL],Information[DATUM],G69,Information[AKTIVITET],$H$8) -> 0 | I69: =IFERROR(AVERAGEIFS(Information[Bränsleförbrukning],Information[DATUM],G69,Information[AKTIVITET],$I$8),NA()) ->  | J69: =IFERROR(AVERAGEIFS(Information[kr per mil],Information[DATUM],G69,Information[AKTIVITET],$J$8),NA()) -> 
